lending/lending_fUSD_20251114
["ID","MTS","AMOUNT","RATE_DAILY","PERIOD"]
[393965317,1763136632613,-168.0,0.00017315,2]
[393965319,1763136632627,-4160.0,0.00017325,2]
[393965321,1763136632637,-203.34167533,0.00017332,2]
[393965323,1763136632648,-192.07,0.00017391,2]
[393965325,1763136632659,-255.90579377,0.00017417,2]
[393965328,1763136632670,-2974.95530716,0.00017417,2]
[393965330,1763136632681,-4160.0,0.00017421,2]
[393965332,1763136632692,-500.0,0.00017532,2]
[393965334,1763136632704,-500.0,0.00017532,2]
[393965336,1763136632715,-500.0,0.00017532,2]
[393965338,1763136632724,-1228.0,0.000176,2]
[393965340,1763136632734,-255.90579377,0.00017659,2]
[393965342,1763136632743,-2974.95530716,0.00017659,2]
[393965368,1763136632971,-1705.70922547,0.00017664,2]
[393965371,1763136632988,-1483.0,0.00017671,2]
[393965373,1763136632998,-1483.0,0.00017674,2]
[393965374,1763136633007,-3429.0,0.00017783,2]
[393965375,1763136633016,-1318.0,0.00017783,2]
[393965376,1763136633025,-575.0,0.00017783,2]
[393965377,1763136633035,-1619.99,0.00017783,2]
[393965378,1763136633044,-821.0,0.00017783,2]
[393965379,1763136633053,-793.0,0.00017783,2]
[393965380,1763136633062,-1275.0,0.00017783,2]
[393965381,1763136633071,-1190.0,0.00017783,2]
[393965382,1763136633080,-907.0,0.00017783,2]
[393965383,1763136633088,-6669.0,0.00017783,2]
[393965384,1763136633097,-2145.0,0.00017783,2]
[393965385,1763136633106,-560.0,0.00017783,2]
[393965386,1763136633115,-468.68,0.00017867,2]
[393965387,1763136633124,-193.92800565,0.00017899,2]
[393965388,1763136633133,-193.92800563,0.000179,2]
[393965390,1763136633142,-8991.275,0.000179,2]
[393965392,1763136633151,-3114.16009738,0.000179,2]
[393965393,1763136633161,-255.90579377,0.000179,2]
[393965395,1763136633170,-2974.95530716,0.000179,2]
[393965397,1763136633179,-653.0759502,0.000179,2]
[393965400,1763136633189,-193.92800563,0.000179,2]
[393965401,1763136633198,-607.59500972,0.000179,2]
[393965404,1763136633208,-785.71260034,0.000179,2]
[393965405,1763136633217,-500.0,0.00017973,2]
[393965407,1763136633226,-255.09463289,0.00017973,2]
[393965410,1763136633236,-162.78564232,0.00017973,2]
[393965412,1763136633245,-507.74347007,0.00017982,2]
[393965414,1763136633254,-20248.36049966,0.00017997,2]
[393965415,1763136633263,-151.0,0.00017997,2]
[393965417,1763136633272,-500.0,0.00017998,2]
[393965419,1763136633284,-500.0,0.00017998,2]
[393965421,1763136633293,-500.0,0.00017998,2]
[393965423,1763136633302,-500.0,0.00017998,2]
[393965425,1763136633312,-150697.45240224,0.00017999,2]
[393965427,1763136633321,-300.0,0.00017999,2]
[393965429,1763136633330,-500.0,0.00017999,2]
[393965431,1763136633340,-300.0,0.00017999,2]
[393965433,1763136633349,-1002.0323,0.00017999,2]
[393965435,1763136633358,-300.0,0.00017999,2]
[393965437,1763136633368,-4024.0,0.00018,2]
[393965439,1763136633377,-1738818.00698208,0.00018,2]
[393965532,1763136637424,-204.98798033,0.00017997,2]
[393965534,1763136637434,-1241.41806087,0.00018,2]
[393965536,1763136637445,-7409.47199732,0.00018,2]
[393965538,1763136637456,-55129.59671139,0.00018,2]
[393965541,1763136637667,-259.89168175,0.00018,2]
[393965543,1763136637679,-455.5594694,0.00018,2]
[393965545,1763136637691,-345719.00970991,0.00018,2]
[393965612,1763136639535,-6486.0,0.00017783,2]
[393965613,1763136639545,-5965120.15753195,0.00018,2]
[393965614,1763136639636,-162171.24630792,0.00018,2]
[393965615,1763136639651,-1597.15944958,0.00018,2]
[393965616,1763136639749,-13861.908195,0.00018,2]
[393965617,1763136639761,-1099.96406077,0.00018,2]
[393965629,1763136645648,-162837.85091777,0.00015727,2]
[393965637,1763136645743,-187917.49888223,0.00015727,2]
[393965639,1763136645753,-50663.11713292,0.00018,2]
[393965641,1763136645764,-2887530.05317435,0.00018,2]
[393965644,1763136645948,-1528461.12303686,0.00018,2]
[393965645,1763136645959,-29022.0,0.00018,2]
[393965652,1763136979791,536.7,0.00025377,120]
[393965782,1763137230148,3584.62341149,0.00017,4]
[393967118,1763137469151,2000.0,0.00026292,120]
[393967127,1763137597092,-166.78123894,0.00015727,2]
[393967130,1763137615116,30651.03094397,0.000162,5]
[393967131,1763137615147,29466.87830389,0.000162,5]
[393967132,1763137652558,10000.0,0.00041393,30]
[393967135,1763137690886,186.59130588,0.000135,2]
[393967136,1763137700168,388.66486837,7.888e-05,2]
[393967141,1763137712697,266.25276174,0.000107,2]
[393967143,1763137719591,9158.50106401,0.00015,3]
[393967144,1763137719617,10000.01,0.00015,3]
[393967145,1763137719648,10000.01,0.00015,3]
[393967146,1763137719676,10000.01,0.00015,3]
[393967147,1763137719703,10000.01,0.00015,3]
[393967148,1763137719730,10000.01,0.00015,3]
[393967149,1763137719757,10000.01,0.00015,3]
[393967150,1763137719784,10000.01,0.00015,3]
[393967151,1763137719809,10000.01,0.00015,3]
[393967152,1763137719839,10000.01,0.00015,3]
[393967153,1763137719868,11810.77394769,0.00015,3]
[393967180,1763137831620,-833.21876106,0.00015727,2]
[393967182,1763137831631,-612.45366065,0.00015732,2]
[393967184,1763137831641,-250.0,0.00015832,2]
[393967186,1763137831652,-767.83,0.00016358,2]
[393967188,1763137831662,-166.66,0.00016447,2]
[393967191,1763137831673,-1817.98364098,0.00016447,2]
[393967193,1763137831684,-1200.0,0.00016462,2]
[393967195,1763137831694,-217.0,0.00016462,2]
[393967196,1763137831705,-6359.08,0.00016463,2]
[393967197,1763137831714,-1852.42,0.00016522,2]
[393967198,1763137831728,-206.89,0.00016572,2]
[393967199,1763137831738,-500.0,0.00016593,2]
[393967200,1763137831748,-1200.0,0.00016773,2]
[393967201,1763137831757,-12923.35,0.00016774,2]
[393967202,1763137831767,-200.0,0.00016774,2]
[393967203,1763137831775,-166.66,0.00016793,2]
[393967204,1763137831785,-547.99151932,0.00016896,2]
[393967205,1763137831795,-201.7718068,0.00016896,2]
[393967206,1763137831804,-485.7689719,0.00016896,2]
[393967207,1763137831814,-500.0,0.00016896,2]
[393967208,1763137831823,-500.0,0.00016896,2]
[393967209,1763137831833,-409.17744723,0.00016896,2]
[393967210,1763137831843,-500.0,0.00016896,2]
[393967211,1763137831853,-269.88003219,0.00016896,2]
[393967212,1763137831862,-500.0,0.00016896,2]
[393967213,1763137831871,-568.58215885,0.00016896,2]
[393967214,1763137831881,-500.0,0.00016896,2]
[393967215,1763137831890,-1000.0,0.00016896,2]
[393967216,1763137831900,-150.99,0.00016897,2]
[393967217,1763137831909,-9999.99,0.00016897,2]
[393967218,1763137831919,-39630.93,0.00016898,2]
[393967219,1763137831928,-536.7,0.00016918,2]
[393967220,1763137831937,-150.0,0.00016972,2]
[393967221,1763137831947,-28813.59944402,0.00017,2]
[393967222,1763137831956,-166.66,0.00017139,2]
[393967223,1763137831965,-166.67,0.00017202,2]
[393967224,1763137831978,-6126.2,0.00017205,2]
[393967225,1763137831987,-401.66,0.00017278,2]
[393967226,1763137831997,-300.0,0.000173,2]
[393967227,1763137832010,-195.0,0.000173,2]
[393967228,1763137832022,-300.0,0.000173,2]
[393967229,1763137832032,-300.0,0.000173,2]
[393967230,1763137832042,-300.0,0.000173,2]
[393967231,1763137832051,-300.0,0.000173,2]
[393967232,1763137832062,-250.0,0.000173,2]
[393967233,1763137832072,-250.0,0.000173,2]
[393967235,1763137832081,-166.66,0.00017485,2]
[393967236,1763137832093,-3445.0,0.00017532,2]
[393967237,1763137832102,-150.0,0.00017578,2]
[393967238,1763137832111,-403.0,0.000177,5]
[393967239,1763137832120,-500.0,0.00017726,2]
[393967240,1763137832130,-1433.96678508,0.00017732,2]
[393967241,1763137832139,-1433.96678505,0.00017751,2]
[393967242,1763137832149,-500.0,0.00017753,2]
[393967243,1763137832158,-1433.96678505,0.00017769,2]
[393967244,1763137832168,-1433.96678505,0.00017788,2]
[393967245,1763137832178,-1433.96678505,0.00017807,2]
[393967246,1763137832187,-1695.58859,0.0001782,2]
[393967247,1763137832196,-1433.96678505,0.00017825,2]
[393967248,1763137832207,-166.66,0.00017832,2]
[393967249,1763137832221,-2500.0,0.0001784,2]
[393967250,1763137832231,-459.5899,0.0001784,2]
[393967251,1763137832241,-1433.96678505,0.00017844,2]
[393967252,1763137832250,-1433.96678505,0.00017863,2]
[393967253,1763137832259,-1433.96678505,0.00017881,2]
[393967254,1763137832269,-1004.12521198,0.00017899,2]
[393967255,1763137832279,-1433.96678505,0.000179,2]
[393967256,1763137832288,-570.72234889,0.000179,2]
[393967257,1763137832473,-208.58827674,0.00017939,2]
[393967258,1763137832484,-535.8955881,0.00017939,2]
[393967259,1763137832494,-180.39576601,0.00017939,2]
[393967260,1763137832503,-5235.7299384,0.0001794,2]
[393967261,1763137832513,-54933.7827473,0.0001794,2]
[393967262,1763137832524,-22711.8736315,0.0001794,2]
[393967263,1763137832534,-69071.5962905,0.0001794,2]
[393967264,1763137832543,-151.0,0.00017997,2]
[393967265,1763137832553,-300.0,0.00017999,2]
[393967266,1763137832563,-500.0,0.00017999,2]
[393967267,1763137832572,-540.44445142,0.00017999,2]
[393967268,1763137832581,-500.0,0.00017999,2]
[393967269,1763137832591,-500.0,0.00017999,2]
[393967270,1763137832600,-500.0,0.00017999,2]
[393967271,1763137832609,-245.47636787,0.00017999,2]
[393967272,1763137832618,-300.0,0.00017999,2]
[393967273,1763137832628,-300.0,0.00017999,2]
[393967274,1763137832637,-3221.0,0.00018,2]
[393967275,1763137832646,-26852.84015989,0.00018,2]
[393967276,1763137832659,-42239.41475505,0.00018,2]
[393967277,1763137832670,-31750.98905834,0.00018,2]
[393967278,1763137832682,-475.80325617,0.00018,2]
[393967279,1763137832693,-1452.286949,0.00018,2]
[393967280,1763137832704,-74423.90581126,0.00018,2]
[393967281,1763137832715,-101356.61570129,0.00018,2]
[393967282,1763137832730,-1808.20460056,0.00018,2]
[393967283,1763137832746,-1025.56765701,0.00018,2]
[393967366,1763137837595,-894.2688825,0.00018,2]
[393967367,1763137837607,-98515.73003878,0.00018,2]
[393967368,1763137837672,-322.062548,0.00018,2]
[393967369,1763137837684,-48694.90950821,0.00018,2]
[393967386,1763137839655,-441039.3899,0.00016798,2]
[393967387,1763137839668,-5530566.76763195,0.00018,2]
[393967388,1763137839802,-39203.64635869,0.00018,2]
[393967414,1763137845486,-378.30639508,0.00018,2]
[393967416,1763137845498,-6830.4830715,0.00018,2]
[393967418,1763137845509,-1436936.09754409,0.00018,2]
[393967420,1763137845521,-1645711.49590785,0.00018,2]
[393967423,1763137845769,-362.60536559,0.00018,2]
[393967432,1763137846153,-5000.00926401,0.00018,2]
[393967439,1763137846229,-513.03998,0.00018,2]
[393967448,1763137926813,45000.0,0.00041393,31]
[393967449,1763137961480,159.37,8.526e-05,2]
[393967450,1763137961702,159.37,0.00010658,2]
[393967451,1763137961901,159.37,0.00012789,2]
[393967453,1763137962131,159.37,0.00014921,2]
[393967454,1763137968744,351.2672,0.00015627,2]
[393967455,1763138000630,831.13136646,0.00041393,30]
[393967465,1763138301426,20000.0,0.00041368,30]
[393967467,1763138356552,166.22627329,0.00041368,30]
[393967475,1763138416575,160.5,0.00013313,2]
[393967480,1763138515322,1000.0,0.0003,120]
[393967493,1763138744795,34781.302,0.00041369,30]
[393967503,1763138870915,-174.92672463,0.000158,2]
[393967504,1763138870948,-2802.918853,0.0001582,2]
[393967507,1763138935816,-643.14,0.000159,2]
[393967509,1763138944014,430.2,0.00015872,2]
[393967510,1763138948026,906.325429,7.945e-05,2]
[393967512,1763138960694,2302.17,0.00015848,2]
[393967513,1763138978694,170.0,1.13e-06,2]
[393967515,1763138983108,1000.0,0.00013699,2]
[393967518,1763138994391,192.07,0.00015854,2]
[393967521,1763139031527,3712.964571,0.00015792,2]
[393967522,1763139031553,8053.735429,0.00015792,2]
[393967539,1763139031905,-195.0,0.00015915,2]
[393967540,1763139031914,-202.18,0.00015931,2]
[393967541,1763139031923,-300.0,0.00015954,2]
[393967542,1763139031933,-300.0,0.00015954,2]
[393967543,1763139031942,-18.835,0.00015954,2]
[393967544,1763139031960,-1181.165,0.00015954,2]
[393967545,1763139031970,-749.0,0.00015955,2]
[393967546,1763139031980,-300.0,0.00015955,2]
[393967547,1763139031989,-10248.31,0.00015956,2]
[393967548,1763139031999,-195.0,0.00015972,2]
[393967549,1763139032008,-150.0,0.00016119,2]
[393967550,1763139032019,-500.0,0.00016173,2]
[393967551,1763139032028,-1824.22,0.00016207,2]
[393967552,1763139032037,-150.0,0.00016302,2]
[393967553,1763139032048,-160.0,0.00016352,2]
[393967554,1763139032057,-2270.32,0.00016438,2]
[393967555,1763139032066,-1753.985,0.00016438,2]
[393967556,1763139032081,-373.5632,0.00016438,2]
[393967557,1763139032093,-967.72769933,0.00016438,2]
[393967558,1763139032104,-758.81580091,0.00016438,2]
[393967560,1763139032136,-1621.73849155,0.00016438,2]
[393967563,1763139032152,-4524.15980821,0.00016438,2]
[393967564,1763139032161,-1928.81,0.00016442,2]
[393967566,1763139032171,-591.23019177,0.00016541,2]
[393967567,1763139032186,-115193.38280823,0.00016541,2]
[393967568,1763139032195,-500.0,0.0001664,2]
[393967569,1763139032205,-195.69477857,0.0001664,2]
[393967570,1763139032214,-221.13155693,0.0001664,2]
[393967571,1763139032224,-500.0,0.0001664,2]
[393967572,1763139032234,-353.21751636,0.0001664,2]
[393967573,1763139032244,-550.0,0.0001664,2]
[393967574,1763139032254,-160.5,0.00016641,2]
[393967575,1763139032263,-187.57029103,0.00016641,2]
[393967576,1763139032275,-2552.43970897,0.00016641,2]
[393967577,1763139032285,-150.99,0.00016641,2]
[393967578,1763139032294,-6629.72182369,0.00016641,2]
[393967579,1763139032306,-1430.48817631,0.00016641,2]
[393967580,1763139032316,-192.07,0.00016734,2]
[393967582,1763139032325,-699.91,0.00016741,2]
[393967584,1763139032335,-1000.0,0.00016753,2]
[393967586,1763139032344,-151.0,0.00016796,2]
[393967587,1763139032355,-151.0,0.00016796,2]
[393967588,1763139032368,-151.0,0.00016796,2]
[393967589,1763139032378,-151.0,0.00016796,2]
[393967590,1763139032389,-151.0,0.00016796,2]
[393967591,1763139032399,-151.0,0.00016796,2]
[393967592,1763139032408,-214.05,0.00016797,2]
[393967593,1763139032418,-15677.25445636,0.00016806,2]
[393967594,1763139032430,-2234.78793271,0.00016806,2]
[393967595,1763139032441,-2595.19987984,0.00016806,2]
[393967598,1763139037793,-314.52381947,0.00016436,2]
[393967599,1763139037803,-500.0,0.00016436,2]
[393967600,1763139037812,-500.0,0.00016436,2]
[393967601,1763139037821,-500.0,0.00016436,2]
[393967602,1763139037831,-500.0,0.00016436,2]
[393967603,1763139037840,-500.0,0.00016436,2]
[393967604,1763139037850,-500.0,0.00016436,2]
[393967605,1763139037859,-500.0,0.00016436,2]
[393967606,1763139037873,-285.61995609,0.00016436,2]
[393967607,1763139037884,-214.38004391,0.00016436,2]
[393967608,1763139037894,-70.64811225,0.00016436,2]
[393967609,1763139037910,-309.99999999,0.00016436,2]
[393967610,1763139037951,-119.35188776,0.00016436,2]
[393967611,1763139037961,-500.0,0.00016436,2]
[393967612,1763139037970,-500.0,0.00016436,2]
[393967613,1763139037979,-500.0,0.00016436,2]
[393967614,1763139037989,-309.45811032,0.00016436,2]
[393967615,1763139038007,-190.54188968,0.00016436,2]
[393967616,1763139038016,-500.0,0.00016436,2]
[393967617,1763139038026,-500.0,0.00016436,2]
[393967618,1763139038036,-500.0,0.00016436,2]
[393967619,1763139038046,-500.0,0.00016436,2]
[393967620,1763139038056,-500.0,0.00016436,2]
[393967622,1763139038065,-500.0,0.00016436,2]
[393967624,1763139038075,-500.0,0.00016436,2]
[393967626,1763139038084,-500.0,0.00016436,2]
[393967628,1763139038093,-500.0,0.00016436,2]
[393967630,1763139038103,-500.0,0.00016436,2]
[393967631,1763139038112,-500.0,0.00016436,2]
[393967632,1763139038124,-500.0,0.00016436,2]
[393967633,1763139038134,-500.0,0.00016436,2]
[393967634,1763139038144,-500.0,0.00016436,2]
[393967635,1763139038153,-500.0,0.00016436,2]
[393967636,1763139038164,-547.62502261,0.00016436,2]
[393967637,1763139038174,-25099.67265896,0.00016806,2]
[393967638,1763139038186,-85508.75347265,0.00016806,2]
[393967639,1763139038196,-503.0,0.00016932,2]
[393967640,1763139038206,-999.0,0.00016964,3]
[393967641,1763139038216,-250.0,0.00017,2]
[393967642,1763139038227,-9103.4,0.0001701,2]
[393967643,1763139038237,-159.37,0.00017052,2]
[393967644,1763139038247,-785.10327177,0.000171,2]
[393967645,1763139038258,-200.0,0.00017133,2]
[393967646,1763139038269,-500.0,0.00017299,2]
[393967647,1763139038285,-2000.0,0.000173,2]
[393967648,1763139038300,-954.0,0.00017338,2]
[393967649,1763139038311,-151.0,0.0001734,2]
[393967650,1763139038321,-954.0,0.00017353,2]
[393967651,1763139038332,-954.0,0.00017413,2]
[393967652,1763139038342,-420.0,0.00017444,2]
[393967653,1763139038353,-555.36849965,0.00017451,2]
[393967654,1763139038366,-193.54994071,0.0001749,2]
[393967655,1763139038378,-195.0,0.0001749,2]
[393967656,1763139038388,-300.0,0.00017507,2]
[393967657,1763139038399,-300.0,0.00017507,2]
[393967658,1763139038409,-300.0,0.00017507,2]
[393967659,1763139038418,-300.0,0.00017507,2]
[393967660,1763139038428,-289.8916933,0.00017507,2]
[393967661,1763139038438,-300.61809369,0.00017507,2]
[393967662,1763139038449,-250.0,0.00017507,2]
[393967663,1763139038459,-350.0,0.00017522,2]
[393967664,1763139038471,-1680.0,0.00017531,2]
[393967665,1763139038482,-203.34167533,0.00017532,2]
[393967666,1763139038492,-954.0,0.00017565,2]
[393967667,1763139038502,-350.0,0.00017574,2]
[393967668,1763139038514,-350.0,0.00017579,2]
[393967669,1763139038524,-2259.0,0.00017611,2]
[393967670,1763139038534,-192.07,0.00017615,2]
[393967671,1763139038546,-350.0,0.00017625,2]
[393967672,1763139038556,-4642.9846898,0.0001764,2]
[393967673,1763139038571,-1756.476,0.0001764,2]
[393967674,1763139038588,-824.0894058,0.0001764,2]
[393967679,1763139039898,-1011.8411884,0.0001764,2]
[393967680,1763139039909,-1705.70922547,0.00017643,2]
[393967681,1763139039918,-954.0,0.00017682,2]
[393967682,1763139040101,-935.0,0.00017755,2]
[393967683,1763139040111,-555.36849965,0.00017761,2]
[393967684,1763139040121,-350.0,0.00017768,2]
[393967685,1763139040131,-1000.0,0.0001784,2]
[393967686,1763139040141,-2677.45977648,0.00017844,2]
[393967687,1763139040150,-193.92800565,0.00017844,2]
[393967688,1763139040159,-2677.45977644,0.0001785,2]
[393967689,1763139040169,-2142.13564151,0.00017851,2]
[393967690,1763139040178,-2677.45977644,0.00017856,2]
[393967691,1763139040188,-2677.45977644,0.00017863,2]
[393967692,1763139040197,-2677.45977644,0.00017869,2]
[393967693,1763139040210,-193.92800563,0.00017872,2]
[393967694,1763139040220,-2677.45977644,0.00017875,2]
[393967695,1763139040229,-2677.45977644,0.00017881,2]
[393967696,1763139040238,-350.0,0.00017886,2]
[393967697,1763139040248,-2677.45977644,0.00017888,2]
[393967698,1763139040258,-2677.45977644,0.00017894,2]
[393967699,1763139040267,-337.74521843,0.000179,2]
[393967700,1763139040276,-8991.275,0.000179,2]
[393967701,1763139040286,-1228.0,0.000179,2]
[393967702,1763139040296,-2677.45977644,0.000179,2]
[393967703,1763139040306,-193.92800563,0.000179,2]
[393967704,1763139040315,-785.71260034,0.000179,2]
[393967705,1763139040324,-2786.79199626,0.000179,2]
[393967706,1763139040334,-954.0,0.00017907,2]
[393967707,1763139040344,-2259.0,0.00017913,2]
[393967708,1763139040353,-500.0,0.00017939,2]
[393967709,1763139040362,-500.0,0.00017939,2]
[393967710,1763139040373,-551.61822093,0.00017939,2]
[393967711,1763139040383,-500.0,0.00017939,2]
[393967712,1763139040392,-500.0,0.00017939,2]
[393967713,1763139040402,-35891.4827085,0.00017944,2]
[393967714,1763139040412,-18640.7124138,0.00017944,2]
[393967715,1763139040424,-4316.8565666,0.00017944,2]
[393967716,1763139040434,-16647.4589789,0.00017944,2]
[393967717,1763139040444,-1428.920904,0.00017944,2]
[393967718,1763139040453,-500.0,0.00017945,2]
[393967719,1763139040464,-306.64280162,0.00017973,2]
[393967720,1763139040477,-424.32394158,0.00017973,2]
[393967721,1763139040487,-500.0,0.00017973,2]
[393967722,1763139040496,-500.0,0.00017973,2]
[393967724,1763139040505,-500.0,0.00017973,2]
[393967726,1763139040516,-506.83414067,0.00017973,2]
[393967728,1763139040525,-449.22014425,0.00017973,2]
[393967730,1763139040534,-507.74347007,0.00017982,2]
[393967732,1763139040543,-350.0,0.00017984,2]
[393967734,1763139040552,-151.0,0.00017997,2]
[393967736,1763139040561,-3294.5114945,0.00017999,2]
[393967738,1763139040570,-300.0,0.00017999,2]
[393967740,1763139040579,-176.31303096,0.00017999,2]
[393967742,1763139040588,-500.0,0.00017999,2]
[393967744,1763139040597,-300.0,0.00017999,2]
[393967746,1763139040607,-300.0,0.00017999,2]
[393967748,1763139040618,-500.0,0.00017999,2]
[393967750,1763139040627,-500.0,0.00017999,2]
[393967752,1763139040636,-500.0,0.00017999,2]
[393967754,1763139040645,-500.0,0.00017999,2]
[393967756,1763139040654,-500.0,0.00017999,2]
[393967758,1763139040663,-630.93518697,0.00017999,2]
[393967760,1763139040672,-300.0,0.00017999,2]
[393967762,1763139040681,-2769.0,0.00018,2]
[393967764,1763139040690,-3290945.97432309,0.00018,2]
[393967766,1763139040698,-150.0,0.00018,2]
[393967768,1763139040708,-250.0,0.00018,2]
[393967770,1763139040717,-200.0,0.00018,2]
[393967772,1763139040725,-264.501,0.00018,2]
[393967774,1763139040734,-150.0,0.00018,2]
[393967776,1763139040743,-150.0,0.00018,2]
[393967778,1763139040752,-150.0,0.00018,2]
[393967780,1763139040761,-150.0,0.00018,2]
[393967782,1763139040770,-150.0,0.00018,2]
[393967784,1763139040779,-2089059.7571541,0.00018,2]
[393967786,1763139040790,-969.105,0.00018,2]
[393967787,1763139040980,-232.2951579,0.00018,2]
[393967788,1763139040995,-776.94153782,0.00018,2]
[393967789,1763139041006,-2541.28875,0.00018,2]
[393967797,1763139042939,-879.9281976,0.000179,2]
[393967798,1763139042948,-4092980.75970019,0.00018,2]
[393967799,1763139042960,-887532.7593899,0.00018,2]
[393967833,1763139046345,-694379.14020895,0.00018,2]
[393967834,1763139046360,-280011.04507232,0.00018,2]
[393967835,1763139046381,-9775.08436724,0.00018,2]
[393967850,1763139071309,320.23795,0.00041389,30]
[393967889,1763139625164,322.02,0.00025106,120]
[393967958,1763140232097,-166.66,0.00016459,2]
[393967959,1763140232107,-171.86246686,0.00016484,2]
[393967960,1763140232116,-300.0,0.00016509,2]
[393967961,1763140232126,-1048.25489795,0.00016554,2]
[393967962,1763140232135,-2000.0,0.00016554,2]
[393967963,1763140232144,-300.0,0.00016559,2]
[393967964,1763140232154,-300.0,0.00016559,2]
[393967965,1763140232163,-300.0,0.00016559,2]
[393967966,1763140232173,-255.87981875,0.00016631,2]
[393967967,1763140232182,-1200.0,0.00016638,2]
[393967968,1763140232191,-1200.0,0.00016638,2]
[393967969,1763140232200,-300.0,0.00016638,2]
[393967970,1763140232209,-180.0,0.00016638,2]
[393967971,1763140232218,-550.0,0.00016639,2]
[393967972,1763140232227,-613.77,0.0001664,2]
[393967973,1763140232236,-500.0,0.0001664,2]
[393967974,1763140232245,-148.85043495,0.0001664,2]
[393967975,1763140232265,-351.14956505,0.0001664,2]
[393967976,1763140232274,-500.0,0.0001664,2]
[393967977,1763140232283,-500.0,0.0001664,2]
[393967978,1763140232293,-500.0,0.0001664,2]
[393967979,1763140232303,-500.0,0.0001664,2]
[393967980,1763140232313,-500.0,0.0001664,2]
[393967981,1763140232322,-500.0,0.0001664,2]
[393967982,1763140232331,-500.0,0.0001664,2]
[393967983,1763140232342,-500.0,0.0001664,2]
[393967984,1763140232351,-500.0,0.0001664,2]
[393967985,1763140232360,-500.0,0.0001664,2]
[393967986,1763140232369,-500.0,0.0001664,2]
[393967987,1763140232379,-500.0,0.0001664,2]
[393967988,1763140232388,-500.0,0.0001664,2]
[393967989,1763140232397,-500.0,0.0001664,2]
[393967990,1763140232407,-500.0,0.0001664,2]
[393967991,1763140232416,-230.26792864,0.0001664,2]
[393967992,1763140232426,-500.0,0.0001664,2]
[393967993,1763140232435,-500.0,0.0001664,2]
[393967994,1763140232445,-500.0,0.0001664,2]
[393967995,1763140232455,-500.0,0.0001664,2]
[393967996,1763140232464,-500.0,0.0001664,2]
[393967997,1763140232474,-500.0,0.0001664,2]
[393967998,1763140232483,-285.69901678,0.0001664,2]
[393967999,1763140232492,-500.0,0.0001664,2]
[393968000,1763140232501,-500.0,0.0001664,2]
[393968001,1763140232510,-452.03381624,0.0001664,2]
[393968002,1763140232519,-500.0,0.0001664,2]
[393968003,1763140232529,-500.0,0.0001664,2]
[393968004,1763140232538,-489.86175159,0.0001664,2]
[393968005,1763140232548,-500.0,0.0001664,2]
[393968006,1763140232557,-500.0,0.0001664,2]
[393968007,1763140232567,-500.0,0.0001664,2]
[393968008,1763140232576,-374.55920862,0.0001664,2]
[393968009,1763140232587,-200.0,0.00016665,2]
[393968010,1763140232596,-1000.0,0.00016707,2]
[393968011,1763140232605,-9999.99,0.00016707,2]
[393968012,1763140232615,-150.0,0.00016707,2]
[393968013,1763140232624,-500.0,0.00016707,2]
[393968014,1763140232633,-150.0,0.00016707,2]
[393968015,1763140232643,-150.0,0.00016707,2]
[393968016,1763140232652,-500.0,0.00016707,2]
[393968017,1763140232662,-150.0,0.00016707,2]
[393968018,1763140232672,-500.0,0.00016707,2]
[393968019,1763140232681,-150.0,0.00016707,2]